[Event "Titled Tuesday Blitz July 13 2021"]
[White "Plotnikov, Pavel"]
[Black "Ambartsumova, Karina"]
[WhiteFideId "4170342"]
[BlackFideId "4166299"]
[WhiteElo "2298"]
[BlackElo "2262"]
[Result "1-0"]
[Round "07"]
[TimeControl "180+1"]
[Date "2021.07.13"]
[WhiteClock "0:00:08"]
[BlackClock "0:00:08"]

1. e4 {[%clk 0:03:00]}  c5 {[%clk 0:02:56]} 2. Nf3 {[%clk 0:03:00]}  e6 {[%clk 0:02:56]} 3. d3 {[%clk 0:02:56]}  Nc6 {[%clk 0:02:55]} 4. g3 {[%clk 0:02:54]}  g6 {[%clk 0:02:55]} 5. Bg2 {[%clk 0:02:54]}  Bg7 {[%clk 0:02:55]} 6. O-O {[%clk 0:02:54]}  Nge7 {[%clk 0:02:53]} 7. Re1 {[%clk 0:02:54]}  d6 {[%clk 0:02:49]} 8. c3 {[%clk 0:02:50]}  e5 {[%clk 0:02:45]} 9. a3 {[%clk 0:02:47]}  O-O {[%clk 0:02:43]} 10. b4 {[%clk 0:02:47]}  h6 {[%clk 0:02:34]} 11. Be3 {[%clk 0:02:44]}  b6 {[%clk 0:02:34]} 12. b5 {[%clk 0:02:39]}  Na5 {[%clk 0:02:30]} 13. Nfd2 {[%clk 0:02:17]}  Be6 {[%clk 0:02:18]} 14. c4 {[%clk 0:02:16]}  Rc8 {[%clk 0:02:10]} 15. Nc3 {[%clk 0:02:15]}  f5 {[%clk 0:02:09]} 16. exf5 {[%clk 0:01:42]}  gxf5 {[%clk 0:01:48]} 17. Rc1 {[%clk 0:01:30]}  Qd7 {[%clk 0:01:42]} 18. f4 {[%clk 0:01:26]}  d5 {[%clk 0:01:33]} 19. cxd5 {[%clk 0:01:23]}  Nxd5 {[%clk 0:01:33]} 20. Nxd5 {[%clk 0:01:18]}  Bxd5 {[%clk 0:01:33]} 21. Nc4 {[%clk 0:01:13]}  Bxg2 {[%clk 0:01:23]} 22. Kxg2 {[%clk 0:01:12]}  Qd5+ {[%clk 0:01:23]} 23. Kg1 {[%clk 0:01:10]}  exf4 {[%clk 0:01:00]} 24. Bxf4 {[%clk 0:01:08]}  Rfd8 {[%clk 0:00:50]} 25. Ne5 {[%clk 0:01:01]}  Nb3 {[%clk 0:00:45]} 26. Rc4 {[%clk 0:00:56]}  Nd4 {[%clk 0:00:45]} 27. Kf2 {[%clk 0:00:25]}  Re8 {[%clk 0:00:43]} 28. Nf3 {[%clk 0:00:19]}  Rxe1 {[%clk 0:00:32]} 29. Nxe1 {[%clk 0:00:17]}  Re8 {[%clk 0:00:32]} 30. Be3 {[%clk 0:00:13]}  f4 {[%clk 0:00:20]} 31. gxf4 {[%clk 0:00:09]}  Nf5 {[%clk 0:00:21]} 32. Re4 {[%clk 0:00:08]}  Rxe4 {[%clk 0:00:19]} 33. dxe4 {[%clk 0:00:08]}  Qxd1 {[%clk 0:00:18]} 34. exf5 {[%clk 0:00:08]}  Qc2+ {[%clk 0:00:18]} 35. Nxc2 {[%clk 0:00:08]}  Bb2 {[%clk 0:00:15]} 36. a4 {[%clk 0:00:07]}  Kf7 {[%clk 0:00:15]} 37. Ke2 {[%clk 0:00:08]}  Kf6 {[%clk 0:00:15]} 38. Kd3 {[%clk 0:00:08]}  Kxf5 {[%clk 0:00:16]} 39. Kc4 {[%clk 0:00:08]}  Ke4 {[%clk 0:00:14]} 40. Bd2 {[%clk 0:00:08]}  Bf6 {[%clk 0:00:14]} 41. Ne3 {[%clk 0:00:07]}  Bd8 {[%clk 0:00:12]} 42. Nd5 {[%clk 0:00:07]}  h5 {[%clk 0:00:12]} 43. Bc1 {[%clk 0:00:06]}  h4 {[%clk 0:00:11]} 44. h3 {[%clk 0:00:06]}  Kf5 {[%clk 0:00:10]} 45. Bd2 {[%clk 0:00:05]}  Ke4 {[%clk 0:00:09]} 46. Be1 {[%clk 0:00:05]}  Kf5 {[%clk 0:00:08]} 47. Kd3 {[%clk 0:00:05]}  Ke6 {[%clk 0:00:08]} 48. Ke4 {[%clk 0:00:05]}  c4 {[%clk 0:00:07]} 49. f5+ {[%clk 0:00:06]}  Kd6 {[%clk 0:00:07]} 50. Bb4+ {[%clk 0:00:05]}  Kd7 {[%clk 0:00:07]} 51. Kd4 {[%clk 0:00:05]}  Ke8 {[%clk 0:00:06]} 52. Kxc4 {[%clk 0:00:05]}  Kf7 {[%clk 0:00:07]} 53. Kd3 {[%clk 0:00:06]}  Bg5 {[%clk 0:00:07]} 54. Ke4 {[%clk 0:00:06]}  Ke8 {[%clk 0:00:07]} 55. Bc3 {[%clk 0:00:07]}  Kf7 {[%clk 0:00:08]} 56. Be5 {[%clk 0:00:07]}  Ke8 {[%clk 0:00:08]} 57. f6 {[%clk 0:00:08]}  Kf7 {[%clk 0:00:08]} 58. Kf5 {[%clk 0:00:08]} 1-0


[Site "https://www.chess.com"]

[Event "Titled Tuesday Blitz July 13 2021"]
[White "Popilski, Gil"]
[Black "Skatchkov, Valery"]
[WhiteFideId "2809060"]
[BlackFideId "24195812"]
[WhiteElo "2537"]
[BlackElo "2199"]
[Result "0-1"]
[Round "07"]
[TimeControl "180+1"]
[Date "2021.07.13"]
[WhiteClock "0:01:13"]
[BlackClock "0:00:34"]

1. Nf3 {[%clk 0:03:00]}  Nf6 {[%clk 0:02:57]} 2. b3 {[%clk 0:03:00]}  c5 {[%clk 0:02:57]} 3. Bb2 {[%clk 0:03:00]}  Nc6 {[%clk 0:02:57]} 4. c4 {[%clk 0:02:59]}  g6 {[%clk 0:02:57]} 5. g4 {[%clk 0:02:55]}  Bg7 {[%clk 0:02:54]} 6. g5 {[%clk 0:02:55]}  Nh5 {[%clk 0:02:55]} 7. Bxg7 {[%clk 0:02:55]}  Nxg7 {[%clk 0:02:56]} 8. d4 {[%clk 0:02:55]}  cxd4 {[%clk 0:02:53]} 9. Nxd4 {[%clk 0:02:56]}  e5 {[%clk 0:02:54]} 10. Nb5 {[%clk 0:02:53]}  Qxg5 {[%clk 0:02:50]} 11. Nc7+ {[%clk 0:02:46]}  Kd8 {[%clk 0:02:44]} 12. Nxa8 {[%clk 0:02:46]}  b6 {[%clk 0:02:33]} 13. Nc3 {[%clk 0:02:24]}  Bb7 {[%clk 0:02:31]} 14. Nxb6 {[%clk 0:02:21]}  axb6 {[%clk 0:02:31]} 15. h4 {[%clk 0:02:20]}  Qe7 {[%clk 0:02:20]} 16. Nd5 {[%clk 0:02:18]}  Qc5 {[%clk 0:02:20]} 17. Rh3 {[%clk 0:02:16]}  Ne6 {[%clk 0:02:12]} 18. Qd2 {[%clk 0:02:10]}  Ncd4 {[%clk 0:01:49]} 19. Bg2 {[%clk 0:02:07]}  Bxd5 {[%clk 0:01:40]} 20. Bxd5 {[%clk 0:02:04]}  Nf4 {[%clk 0:01:41]} 21. Re3 {[%clk 0:01:55]}  f6 {[%clk 0:00:59]} 22. Bh1 {[%clk 0:01:44]}  Nf5 {[%clk 0:00:50]} 23. Rf3 {[%clk 0:01:30]}  Nxh4 {[%clk 0:00:49]} 24. Rxf4 {[%clk 0:01:30]}  exf4 {[%clk 0:00:49]} 25. Qxf4 {[%clk 0:01:30]}  Nf5 {[%clk 0:00:44]} 26. Qb8+ {[%clk 0:01:27]}  Qc8 {[%clk 0:00:42]} 27. Qxb6+ {[%clk 0:01:26]}  Ke7 {[%clk 0:00:43]} 28. O-O-O {[%clk 0:01:24]}  h5 {[%clk 0:00:37]} 29. e4 {[%clk 0:01:16]}  Nh6 {[%clk 0:00:34]} 30. Qe6+ {[%clk 0:01:13]}  Kxe6 {[%clk 0:00:34]} 0-1


[Site "https://www.chess.com"]

[Event "Titled Tuesday Blitz July 13 2021"]
[White "Pruijssers, Roeland"]
[Black "Boidiya, Sidi"]
[WhiteFideId "1013068"]
[BlackFideId "19600100"]
[WhiteElo "2545"]
[BlackElo "2113"]
[Result "1-0"]
[Round "07"]
[TimeControl "180+1"]
[Date "2021.07.13"]
[WhiteClock "0:00:57"]
[BlackClock "0:01:35"]

1. e4 {[%clk 0:03:00]}  c5 {[%clk 0:02:59]} 2. Nf3 {[%clk 0:03:00]}  e6 {[%clk 0:02:57]} 3. Bd3 {[%clk 0:02:59]}  Nc6 {[%clk 0:02:56]} 4. O-O {[%clk 0:02:58]}  Nf6 {[%clk 0:02:55]} 5. Re1 {[%clk 0:02:52]}  d6 {[%clk 0:02:55]} 6. c3 {[%clk 0:02:51]}  Be7 {[%clk 0:02:49]} 7. a3 {[%clk 0:02:43]}  Qc7 {[%clk 0:02:48]} 8. b4 {[%clk 0:02:40]}  b6 {[%clk 0:02:46]} 9. Bc2 {[%clk 0:02:27]}  Bb7 {[%clk 0:02:46]} 10. d4 {[%clk 0:02:22]}  cxd4 {[%clk 0:02:47]} 11. cxd4 {[%clk 0:02:23]}  Rc8 {[%clk 0:02:46]} 12. Re2 {[%clk 0:02:10]}  O-O {[%clk 0:02:44]} 13. Bb2 {[%clk 0:01:54]}  Rfd8 {[%clk 0:02:41]} 14. d5 {[%clk 0:01:48]}  Nb8 {[%clk 0:02:31]} 15. dxe6 {[%clk 0:01:44]}  fxe6 {[%clk 0:02:32]} 16. Nc3 {[%clk 0:01:43]}  Nbd7 {[%clk 0:02:29]} 17. Nb5 {[%clk 0:01:24]}  Qb8 {[%clk 0:02:28]} 18. Nbd4 {[%clk 0:01:24]}  Nf8 {[%clk 0:02:26]} 19. Ng5 {[%clk 0:01:23]}  e5 {[%clk 0:02:08]} 20. Nf5 {[%clk 0:01:22]}  Qc7 {[%clk 0:02:03]} 21. Bb3+ {[%clk 0:01:20]}  d5 {[%clk 0:02:02]} 22. exd5 {[%clk 0:01:20]}  Bxd5 {[%clk 0:02:02]} 23. Rxe5 {[%clk 0:01:10]}  Ng6 {[%clk 0:01:36]} 24. Rxd5 {[%clk 0:01:00]}  Nxd5 {[%clk 0:01:35]} 25. Bxd5+ {[%clk 0:00:58]}  Kh8 {[%clk 0:01:35]} 26. Bxg7# {[%clk 0:00:57]} 1-0


[Site "https://www.chess.com"]

[Event "Titled Tuesday Blitz July 13 2021"]
[White "Przybylski, Wojciech"]
[Black "Arabidze, Meri"]
[WhiteFideId "1117599"]
[BlackFideId "13604040"]
[WhiteElo "2317"]
[BlackElo "2432"]
[Result "0-1"]
[Round "07"]
[TimeControl "180+1"]
[Date "2021.07.13"]
[WhiteClock "0:00:05"]
[BlackClock "0:00:17"]

1. e4 {[%clk 0:03:00]}  c5 {[%clk 0:02:59]} 2. Nf3 {[%clk 0:02:59]}  e6 {[%clk 0:02:59]} 3. b3 {[%clk 0:02:58]}  b6 {[%clk 0:02:59]} 4. c4 {[%clk 0:02:56]}  Bb7 {[%clk 0:02:59]} 5. Nc3 {[%clk 0:02:56]}  Nc6 {[%clk 0:02:59]} 6. Bb2 {[%clk 0:02:52]}  e5 {[%clk 0:02:58]} 7. Nd5 {[%clk 0:02:49]}  d6 {[%clk 0:02:58]} 8. g3 {[%clk 0:02:47]}  Nf6 {[%clk 0:02:54]} 9. d3 {[%clk 0:02:45]}  Nxd5 {[%clk 0:02:49]} 10. cxd5 {[%clk 0:02:43]}  Ne7 {[%clk 0:02:45]} 11. Bg2 {[%clk 0:02:41]}  g6 {[%clk 0:02:38]} 12. O-O {[%clk 0:02:40]}  Bg7 {[%clk 0:02:38]} 13. Nd2 {[%clk 0:02:39]}  O-O {[%clk 0:02:38]} 14. f4 {[%clk 0:02:38]}  f5 {[%clk 0:02:37]} 15. Nc4 {[%clk 0:02:33]}  exf4 {[%clk 0:02:35]} 16. Bxg7 {[%clk 0:02:30]}  Kxg7 {[%clk 0:02:36]} 17. gxf4 {[%clk 0:02:28]}  b5 {[%clk 0:02:33]} 18. Ne3 {[%clk 0:02:27]}  a5 {[%clk 0:02:09]} 19. a4 {[%clk 0:02:24]}  bxa4 {[%clk 0:01:43]} 20. Rxa4 {[%clk 0:02:21]}  Ba6 {[%clk 0:01:34]} 21. Nc4 {[%clk 0:02:06]}  Bb5 {[%clk 0:01:33]} 22. Ra3 {[%clk 0:01:52]}  Bxc4 {[%clk 0:01:15]} 23. bxc4 {[%clk 0:01:51]}  fxe4 {[%clk 0:01:04]} 24. dxe4 {[%clk 0:01:51]}  Kg8 {[%clk 0:00:59]} 25. Bh3 {[%clk 0:01:46]}  Nc8 {[%clk 0:00:50]} 26. Be6+ {[%clk 0:01:44]}  Kh8 {[%clk 0:00:44]} 27. Qa1+ {[%clk 0:00:56]}  Qf6 {[%clk 0:00:44]} 28. Qxf6+ {[%clk 0:00:45]}  Rxf6 {[%clk 0:00:44]} 29. e5 {[%clk 0:00:45]}  Rf8 {[%clk 0:00:45]} 30. Bd7 {[%clk 0:00:38]}  g5 {[%clk 0:00:37]} 31. e6 {[%clk 0:00:34]}  gxf4 {[%clk 0:00:34]} 32. Raf3 {[%clk 0:00:31]}  Ne7 {[%clk 0:00:33]} 33. Ba4 {[%clk 0:00:25]}  Ng6 {[%clk 0:00:32]} 34. h4 {[%clk 0:00:25]}  h5 {[%clk 0:00:29]} 35. Kh2 {[%clk 0:00:24]}  Rab8 {[%clk 0:00:27]} 36. Bb5 {[%clk 0:00:23]}  Kg7 {[%clk 0:00:25]} 37. Ra1 {[%clk 0:00:20]}  Ne5 {[%clk 0:00:22]} 38. Rfa3 {[%clk 0:00:16]}  Kf6 {[%clk 0:00:20]} 39. Rxa5 {[%clk 0:00:15]}  Rg8 {[%clk 0:00:20]} 40. Rf1 {[%clk 0:00:10]}  Rg4 {[%clk 0:00:19]} 41. Ra7 {[%clk 0:00:08]}  Rbg8 {[%clk 0:00:18]} 42. Ra3 {[%clk 0:00:06]}  Rxh4+ {[%clk 0:00:19]} 43. Rh3 {[%clk 0:00:05]}  Ng4+ {[%clk 0:00:19]} 44. Kg2 {[%clk 0:00:05]}  Ne3+ {[%clk 0:00:17]} 45. Kf2 {[%clk 0:00:03]}  Rxh3 {[%clk 0:00:17]} 46. Rg1 {[%clk 0:00:03]}  Rxg1 {[%clk 0:00:17]} 47. Kxg1 {[%clk 0:00:04]}  Nf5 {[%clk 0:00:17]} 48. Kf2 {[%clk 0:00:03]}  Rg3 {[%clk 0:00:17]} 49. Bd7 {[%clk 0:00:03]}  h4 {[%clk 0:00:17]} 50. e7 {[%clk 0:00:04]}  Nxe7 {[%clk 0:00:17]} 51. Be6 {[%clk 0:00:03]}  h3 {[%clk 0:00:17]} 52. Bxh3 {[%clk 0:00:02]}  Rxh3 {[%clk 0:00:17]} 53. Kg2 {[%clk 0:00:03]}  Rc3 {[%clk 0:00:17]} 54. Kf2 {[%clk 0:00:03]}  Kf5 {[%clk 0:00:16]} 55. Ke2 {[%clk 0:00:03]}  Ke4 {[%clk 0:00:16]} 56. Kf2 {[%clk 0:00:04]}  f3 {[%clk 0:00:17]} 57. Kg1 {[%clk 0:00:04]}  Rc2 {[%clk 0:00:17]} 58. Kh1 {[%clk 0:00:04]}  Kf4 {[%clk 0:00:17]} 59. Kg1 {[%clk 0:00:04]}  Kg3 {[%clk 0:00:17]} 60. Kh1 {[%clk 0:00:05]}  Rc1# {[%clk 0:00:17]} 0-1


[Site "https://www.chess.com"]

[Event "Titled Tuesday Blitz July 13 2021"]
[White "Rodriguez Hernandez, Luis Daniel"]
[Black "Pein, Jonathan"]
[WhiteFideId "3506770"]
[BlackFideId "417092"]
[WhiteElo "2133"]
[BlackElo "2167"]
[Result "1-0"]
[Round "07"]
[TimeControl "180+1"]
[Date "2021.07.13"]
[WhiteClock "0:00:06"]
[BlackClock "0:00:55"]

1. e4 {[%clk 0:03:00]}  c5 {[%clk 0:02:58]} 2. c3 {[%clk 0:03:00]}  g6 {[%clk 0:02:57]} 3. d4 {[%clk 0:03:00]}  cxd4 {[%clk 0:02:57]} 4. cxd4 {[%clk 0:03:00]}  Bg7 {[%clk 0:02:58]} 5. Nc3 {[%clk 0:03:00]}  d5 {[%clk 0:02:49]} 6. e5 {[%clk 0:02:49]}  Nc6 {[%clk 0:02:48]} 7. h3 {[%clk 0:02:49]}  h5 {[%clk 0:02:43]} 8. Nf3 {[%clk 0:02:24]}  e6 {[%clk 0:02:43]} 9. Nb5 {[%clk 0:02:21]}  Nh6 {[%clk 0:02:26]} 10. Bg5 {[%clk 0:01:58]}  Qa5+ {[%clk 0:02:24]} 11. Bd2 {[%clk 0:01:48]}  Qb6 {[%clk 0:02:20]} 12. Nd6+ {[%clk 0:01:43]}  Kf8 {[%clk 0:02:19]} 13. Qb3 {[%clk 0:01:18]}  Nxd4 {[%clk 0:02:03]} 14. Nxd4 {[%clk 0:00:58]}  Qxd4 {[%clk 0:02:04]} 15. Bc3 {[%clk 0:00:56]}  Qb6 {[%clk 0:02:00]} 16. Qxb6 {[%clk 0:00:52]}  axb6 {[%clk 0:02:01]} 17. Bb5 {[%clk 0:00:30]}  Nf5 {[%clk 0:01:58]} 18. f4 {[%clk 0:00:27]}  Ne3 {[%clk 0:01:32]} 19. Kf2 {[%clk 0:00:24]}  Nf5 {[%clk 0:01:20]} 20. Bb4 {[%clk 0:00:21]}  Kg8 {[%clk 0:01:15]} 21. Rhc1 {[%clk 0:00:21]}  Ne7 {[%clk 0:01:03]} 22. Rc7 {[%clk 0:00:20]}  Bf8 {[%clk 0:01:04]} 23. Nxb7 {[%clk 0:00:18]}  Bxb7 {[%clk 0:01:04]} 24. Rxb7 {[%clk 0:00:17]}  Nf5 {[%clk 0:01:01]} 25. Bxf8 {[%clk 0:00:11]}  Kxf8 {[%clk 0:01:02]} 26. Rc1 {[%clk 0:00:11]}  Kg7 {[%clk 0:01:03]} 27. Rcc7 {[%clk 0:00:11]}  Rxa2 {[%clk 0:00:59]} 28. Rxf7+ {[%clk 0:00:10]}  Kh6 {[%clk 0:01:00]} 29. g4 {[%clk 0:00:09]}  Rxb2+ {[%clk 0:00:59]} 30. Be2 {[%clk 0:00:05]}  hxg4 {[%clk 0:00:55]} 31. hxg4 {[%clk 0:00:06]}  Nd4 {[%clk 0:00:55]} 32. g5# {[%clk 0:00:06]} 1-0


[Site "https://www.chess.com"]

[Event "Titled Tuesday Blitz July 13 2021"]
[White "Sadovsky, Artem"]
[Black "Tomb, Maroun"]
[WhiteFideId "4155840"]
[BlackFideId "5300398"]
[WhiteElo "2442"]
[BlackElo "2523"]
[Result "0-1"]
[Round "07"]
[TimeControl "180+1"]
[Date "2021.07.13"]
[WhiteClock "0:00:01"]
[BlackClock "0:00:24"]

1. Nf3 {[%clk 0:03:00]}  d6 {[%clk 0:02:59]} 2. d4 {[%clk 0:02:59]}  Nf6 {[%clk 0:02:56]} 3. Nc3 {[%clk 0:02:57]}  Nbd7 {[%clk 0:02:57]} 4. Bg5 {[%clk 0:02:55]}  e5 {[%clk 0:02:56]} 5. e3 {[%clk 0:02:50]}  c6 {[%clk 0:02:56]} 6. a4 {[%clk 0:02:49]}  h6 {[%clk 0:02:45]} 7. Bxf6 {[%clk 0:02:48]}  Qxf6 {[%clk 0:02:44]} 8. Bd3 {[%clk 0:02:44]}  d5 {[%clk 0:02:39]} 9. dxe5 {[%clk 0:02:14]}  Nxe5 {[%clk 0:02:40]} 10. Nxe5 {[%clk 0:02:09]}  Qxe5 {[%clk 0:02:40]} 11. Qd2 {[%clk 0:02:04]}  Bb4 {[%clk 0:02:38]} 12. O-O {[%clk 0:01:58]}  Bg4 {[%clk 0:02:35]} 13. h3 {[%clk 0:01:55]}  Bh5 {[%clk 0:02:34]} 14. f4 {[%clk 0:01:54]}  Qd6 {[%clk 0:02:24]} 15. g4 {[%clk 0:01:30]}  Bg6 {[%clk 0:02:22]} 16. Bxg6 {[%clk 0:01:31]}  fxg6 {[%clk 0:02:10]} 17. Qd4 {[%clk 0:01:28]}  O-O {[%clk 0:02:08]} 18. Rad1 {[%clk 0:01:23]}  Rae8 {[%clk 0:02:06]} 19. Qd3 {[%clk 0:00:56]}  Bc5 {[%clk 0:02:04]} 20. Rf3 {[%clk 0:00:23]}  Rxf4 {[%clk 0:01:59]} 21. Rdf1 {[%clk 0:00:16]}  Rxf3 {[%clk 0:01:48]} 22. Rxf3 {[%clk 0:00:17]}  h5 {[%clk 0:01:32]} 23. Kg2 {[%clk 0:00:16]}  Re5 {[%clk 0:01:22]} 24. Ne2 {[%clk 0:00:10]}  h4 {[%clk 0:01:00]} 25. Nf4 {[%clk 0:00:10]}  Re4 {[%clk 0:01:00]} 26. b3 {[%clk 0:00:06]}  Qe5 {[%clk 0:00:48]} 27. Nxg6 {[%clk 0:00:04]}  Qa1 {[%clk 0:00:44]} 28. Nxh4 {[%clk 0:00:04]}  Qe1 {[%clk 0:00:41]} 29. Nf5 {[%clk 0:00:04]}  g6 {[%clk 0:00:40]} 30. Ng3 {[%clk 0:00:02]}  Re6 {[%clk 0:00:37]} 31. Rf1 {[%clk 0:00:02]}  Qxe3 {[%clk 0:00:34]} 32. Qxe3 {[%clk 0:00:02]}  Rxe3 {[%clk 0:00:33]} 33. h4 {[%clk 0:00:03]}  Bd6 {[%clk 0:00:31]} 34. Nh1 {[%clk 0:00:02]}  Re4 {[%clk 0:00:27]} 35. Kh3 {[%clk 0:00:02]}  Bc5 {[%clk 0:00:24]} 36. Rf6 {[%clk 0:00:02]}  Kg7 {[%clk 0:00:24]} 37. Rf1 {[%clk 0:00:01]}  Re2 {[%clk 0:00:24]} 0-1


[Site "https://www.chess.com"]

[Event "Titled Tuesday Blitz July 13 2021"]
[White "Seo, Jung Min"]
[Black "Gurevich, Dmitry"]
[WhiteFideId "1734687"]
[BlackFideId "2000407"]
[WhiteElo "2486"]
[BlackElo "2506"]
[Result "0-1"]
[Round "07"]
[TimeControl "180+1"]
[Date "2021.07.13"]
[WhiteClock "0:02:20"]
[BlackClock "0:01:10"]

1. e4 {[%clk 0:03:00]}  c5 {[%clk 0:02:57]} 2. Nc3 {[%clk 0:03:01]}  g6 {[%clk 0:02:56]} 3. Nf3 {[%clk 0:03:00]}  Bg7 {[%clk 0:02:55]} 4. d4 {[%clk 0:03:01]}  cxd4 {[%clk 0:02:55]} 5. Nxd4 {[%clk 0:03:02]}  Nc6 {[%clk 0:02:55]} 6. Be3 {[%clk 0:03:02]}  Nf6 {[%clk 0:02:54]} 7. f3 {[%clk 0:03:02]}  O-O {[%clk 0:02:52]} 8. Bc4 {[%clk 0:03:01]}  Qb6 {[%clk 0:02:47]} 9. Bb3 {[%clk 0:03:01]}  Nxe4 {[%clk 0:02:41]} 10. Nd5 {[%clk 0:03:00]}  Qa5+ {[%clk 0:02:39]} 11. c3 {[%clk 0:03:00]}  Nf6 {[%clk 0:02:27]} 12. Nxc6 {[%clk 0:02:58]}  dxc6 {[%clk 0:02:26]} 13. Nxe7+ {[%clk 0:02:58]}  Kh8 {[%clk 0:02:26]} 14. Nxc8 {[%clk 0:02:58]}  Raxc8 {[%clk 0:02:22]} 15. O-O {[%clk 0:02:58]}  Rcd8 {[%clk 0:02:19]} 16. Qc2 {[%clk 0:02:57]}  Nd5 {[%clk 0:02:16]} 17. Bf2 {[%clk 0:02:55]}  Qc7 {[%clk 0:02:05]} 18. Rfe1 {[%clk 0:02:54]}  a6 {[%clk 0:02:01]} 19. a3 {[%clk 0:02:53]}  Bf6 {[%clk 0:01:54]} 20. a4 {[%clk 0:02:52]}  Kg7 {[%clk 0:01:52]} 21. Bc4 {[%clk 0:02:48]}  h5 {[%clk 0:01:50]} 22. Bf1 {[%clk 0:02:44]}  h4 {[%clk 0:01:37]} 23. Rad1 {[%clk 0:02:44]}  Nf4 {[%clk 0:01:35]} 24. Re4 {[%clk 0:02:39]}  Ne6 {[%clk 0:01:33]} 25. Bxh4 {[%clk 0:02:31]}  Bxh4 {[%clk 0:01:28]} 26. Rxh4 {[%clk 0:02:30]}  Qb6+ {[%clk 0:01:27]} 27. Kh1 {[%clk 0:02:31]}  Rxd1 {[%clk 0:01:23]} 28. Qxd1 {[%clk 0:02:31]}  Qxb2 {[%clk 0:01:23]} 29. Rb4 {[%clk 0:02:30]}  Qxc3 {[%clk 0:01:18]} 30. Rxb7 {[%clk 0:02:30]}  Rd8 {[%clk 0:01:17]} 31. Qb1 {[%clk 0:02:29]}  Rd2 {[%clk 0:01:14]} 32. h3 {[%clk 0:02:20]}  Qd4 {[%clk 0:01:13]} 33. Rb4 {[%clk 0:02:20]}  Rd1 {[%clk 0:01:10]} 0-1


[Site "https://www.chess.com"]

[Event "Titled Tuesday Blitz July 13 2021"]
[White "Sharapov, Evgeny"]
[Black "Pinto, Daniel"]
[WhiteFideId "14103133"]
[BlackFideId "3303144"]
[WhiteElo "2367"]
[BlackElo "1936"]
[Result "1-0"]
[Round "07"]
[TimeControl "180+1"]
[Date "2021.07.13"]
[WhiteClock "0:00:34"]
[BlackClock "0:00:01"]

1. c4 {[%clk 0:02:59]}  Nf6 {[%clk 0:02:56]} 2. Nc3 {[%clk 0:02:59]}  e6 {[%clk 0:02:56]} 3. e4 {[%clk 0:02:58]}  d5 {[%clk 0:02:51]} 4. e5 {[%clk 0:02:57]}  d4 {[%clk 0:02:49]} 5. exf6 {[%clk 0:02:57]}  dxc3 {[%clk 0:02:49]} 6. bxc3 {[%clk 0:02:57]}  Qxf6 {[%clk 0:02:46]} 7. d4 {[%clk 0:02:56]}  c5 {[%clk 0:02:44]} 8. Nf3 {[%clk 0:02:56]}  cxd4 {[%clk 0:02:44]} 9. cxd4 {[%clk 0:02:55]}  Bb4+ {[%clk 0:02:44]} 10. Bd2 {[%clk 0:02:54]}  Bxd2+ {[%clk 0:02:45]} 11. Qxd2 {[%clk 0:02:54]}  O-O {[%clk 0:02:46]} 12. Be2 {[%clk 0:02:40]}  b6 {[%clk 0:02:43]} 13. O-O {[%clk 0:02:40]}  Bb7 {[%clk 0:02:43]} 14. Ne5 {[%clk 0:02:35]}  Rd8 {[%clk 0:02:35]} 15. Rad1 {[%clk 0:02:30]}  Nd7 {[%clk 0:02:26]} 16. f4 {[%clk 0:02:23]}  Nxe5 {[%clk 0:02:01]} 17. fxe5 {[%clk 0:02:22]}  Qg6 {[%clk 0:02:02]} 18. Bf3 {[%clk 0:02:13]}  Bxf3 {[%clk 0:01:56]} 19. Rxf3 {[%clk 0:02:13]}  Rd7 {[%clk 0:01:57]} 20. d5 {[%clk 0:02:00]}  Rc8 {[%clk 0:01:28]} 21. Qd3 {[%clk 0:01:14]}  Qxd3 {[%clk 0:00:45]} 22. Rdxd3 {[%clk 0:01:13]}  Rxc4 {[%clk 0:00:23]} 23. dxe6 {[%clk 0:01:10]}  Rxd3 {[%clk 0:00:23]} 24. exf7+ {[%clk 0:01:01]}  Kf8 {[%clk 0:00:22]} 25. Rxd3 {[%clk 0:01:00]}  Kxf7 {[%clk 0:00:19]} 26. Rd7+ {[%clk 0:00:59]}  Ke6 {[%clk 0:00:19]} 27. Rxa7 {[%clk 0:00:55]}  Kxe5 {[%clk 0:00:15]} 28. Rxg7 {[%clk 0:00:53]}  Rc1+ {[%clk 0:00:16]} 29. Kf2 {[%clk 0:00:53]}  Rc2+ {[%clk 0:00:17]} 30. Kf3 {[%clk 0:00:50]}  Rxa2 {[%clk 0:00:17]} 31. Rxh7 {[%clk 0:00:50]}  Kf5 {[%clk 0:00:14]} 32. Rh5+ {[%clk 0:00:47]}  Kg6 {[%clk 0:00:13]} 33. Rb5 {[%clk 0:00:47]}  Ra3+ {[%clk 0:00:13]} 34. Kf4 {[%clk 0:00:46]}  Ra4+ {[%clk 0:00:13]} 35. Kg3 {[%clk 0:00:46]}  Ra3+ {[%clk 0:00:12]} 36. Kh4 {[%clk 0:00:45]}  Ra6 {[%clk 0:00:10]} 37. h3 {[%clk 0:00:44]}  Kh6 {[%clk 0:00:10]} 38. g4 {[%clk 0:00:44]}  Kg6 {[%clk 0:00:08]} 39. Rd5 {[%clk 0:00:43]}  Kg7 {[%clk 0:00:04]} 40. Kh5 {[%clk 0:00:41]}  Ra5 {[%clk 0:00:03]} 41. Rg5+ {[%clk 0:00:35]}  Rxg5+ {[%clk 0:00:01]} 42. Kxg5 {[%clk 0:00:34]}  b5 {[%clk 0:00:01]} 43. Kf4 {[%clk 0:00:35]}  Kf6 {[%clk 0:00:02]} 44. Ke3 {[%clk 0:00:35]}  Kg5 {[%clk 0:00:01]} 45. Kd2 {[%clk 0:00:34]} 1-0


[Site "https://www.chess.com"]